{"text_format":"3","workbook":"xlsx","n_sheets":5,"sheets":["Toodete müügiaruanne","Ajalooandmed","Hinnakiri","Hinnapunkti liigendtabel","Müügitrendi liigendtabel"],"not_rendered":{"charts":2,"defined_names":6,"pivot_tables":2},"read":"whole","date_system":"1900"}

{"sheet":"Toodete müügiaruanne","index":0,"n_rows":20,"n_cols":2,"rows_kept":20}
[null,"Toodete müügiaruanne"]
{"$rows_empty":18}
[null," Tooted"]

{"sheet":"Ajalooandmed","index":1,"n_rows":33,"n_cols":10,"rows_kept":33}
[null,"Varasem toodete hinnakiri + läbimüük"]
[]
[null,"Toote ID","Toote nimi","Hinna kuupäev","Ühiku jaemüügihind","Ühiku hulgimüügihind*","Müüdud ühikud (jae)","Müüdud ühikud (hulgi)","Müük kokku (kogus)","Müük kokku (€)"]
[null,5,{"$f":"IFERROR(IF(tblMüük[[#This Row],[Toote ID]]<>\"\",VLOOKUP(tblMüük[Toote ID],tblTooted[[Toote ID]:[Nimi]],2,FALSE),\"\"),\"Unknown Product ID\")","v":"Lühikesed püksid"},"2012-01-01",20,{"v":20,"d":"20 €"},629,{"v":1254,"d":"1,254"},{"$f":"tblMüük[[#This Row],[Müüdud ühikud (jae)]]+tblMüük[[#This Row],[Müüdud ühikud (hulgi)]]","v":{"v":1883,"d":"1,883"}},{"$f":"tblMüük[[#This Row],[Müüdud ühikud (jae)]]*tblMüük[[#This Row],[Ühiku jaemüügihind]]+tblMüük[[#This Row],[Müüdud ühikud (hulgi)]]*tblMüük[[#This Row],[Ühiku hulgimüügihind*]]","v":{"v":37660,"d":"37,660.00 €"}}]
[null,1,{"$f":"IFERROR(IF(tblMüük[[#This Row],[Toote ID]]<>\"\",VLOOKUP(tblMüük[Toote ID],tblTooted[[Toote ID]:[Nimi]],2,FALSE),\"\"),\"Unknown Product ID\")","v":"Särgid"},"2012-01-01",88,{"v":54,"d":"54 €"},734,{"v":1427,"d":"1,427"},{"$f":"tblMüük[[#This Row],[Müüdud ühikud (jae)]]+tblMüük[[#This Row],[Müüdud ühikud (hulgi)]]","v":{"v":2161,"d":"2,161"}},{"$f":"tblMüük[[#This Row],[Müüdud ühikud (jae)]]*tblMüük[[#This Row],[Ühiku jaemüügihind]]+tblMüük[[#This Row],[Müüdud ühikud (hulgi)]]*tblMüük[[#This Row],[Ühiku hulgimüügihind*]]","v":{"v":141650,"d":"141,650.00 €"}}]
[null,2,{"$f":"IFERROR(IF(tblMüük[[#This Row],[Toote ID]]<>\"\",VLOOKUP(tblMüük[Toote ID],tblTooted[[Toote ID]:[Nimi]],2,FALSE),\"\"),\"Unknown Product ID\")","v":"Sandaalid"},"2012-01-01",70,{"v":44,"d":"44 €"},744,{"v":1043,"d":"1,043"},{"$f":"tblMüük[[#This Row],[Müüdud ühikud (jae)]]+tblMüük[[#This Row],[Müüdud ühikud (hulgi)]]","v":{"v":1787,"d":"1,787"}},{"$f":"tblMüük[[#This Row],[Müüdud ühikud (jae)]]*tblMüük[[#This Row],[Ühiku jaemüügihind]]+tblMüük[[#This Row],[Müüdud ühikud (hulgi)]]*tblMüük[[#This Row],[Ühiku hulgimüügihind*]]","v":{"v":97972,"d":"97,972.00 €"}}]
[null,3,{"$f":"IFERROR(IF(tblMüük[[#This Row],[Toote ID]]<>\"\",VLOOKUP(tblMüük[Toote ID],tblTooted[[Toote ID]:[Nimi]],2,FALSE),\"\"),\"Unknown Product ID\")","v":"Päikesevarjud"},"2012-01-01",63,{"v":44,"d":"44 €"},681,{"v":1523,"d":"1,523"},{"$f":"tblMüük[[#This Row],[Müüdud ühikud (jae)]]+tblMüük[[#This Row],[Müüdud ühikud (hulgi)]]","v":{"v":2204,"d":"2,204"}},{"$f":"tblMüük[[#This Row],[Müüdud ühikud (jae)]]*tblMüük[[#This Row],[Ühiku jaemüügihind]]+tblMüük[[#This Row],[Müüdud ühikud (hulgi)]]*tblMüük[[#This Row],[Ühiku hulgimüügihind*]]","v":{"v":109915,"d":"109,915.00 €"}}]
[null,4,{"$f":"IFERROR(IF(tblMüük[[#This Row],[Toote ID]]<>\"\",VLOOKUP(tblMüük[Toote ID],tblTooted[[Toote ID]:[Nimi]],2,FALSE),\"\"),\"Unknown Product ID\")","v":"Veepudelid"},"2012-01-01",35,{"v":27,"d":"27 €"},602,{"v":1822,"d":"1,822"},{"$f":"tblMüük[[#This Row],[Müüdud ühikud (jae)]]+tblMüük[[#This Row],[Müüdud ühikud (hulgi)]]","v":{"v":2424,"d":"2,424"}},{"$f":"tblMüük[[#This Row],[Müüdud ühikud (jae)]]*tblMüük[[#This Row],[Ühiku jaemüügihind]]+tblMüük[[#This Row],[Müüdud ühikud (hulgi)]]*tblMüük[[#This Row],[Ühiku hulgimüügihind*]]","v":{"v":70264,"d":"70,264.00 €"}}]
[null,1,{"$f":"IFERROR(IF(tblMüük[[#This Row],[Toote ID]]<>\"\",VLOOKUP(tblMüük[Toote ID],tblTooted[[Toote ID]:[Nimi]],2,FALSE),\"\"),\"Unknown Product ID\")","v":"Särgid"},"2012-02-01",55,{"v":44,"d":"44 €"},678,{"v":1515,"d":"1,515"},{"$f":"tblMüük[[#This Row],[Müüdud ühikud (jae)]]+tblMüük[[#This Row],[Müüdud ühikud (hulgi)]]","v":{"v":2193,"d":"2,193"}},{"$f":"tblMüük[[#This Row],[Müüdud ühikud (jae)]]*tblMüük[[#This Row],[Ühiku jaemüügihind]]+tblMüük[[#This Row],[Müüdud ühikud (hulgi)]]*tblMüük[[#This Row],[Ühiku hulgimüügihind*]]","v":{"v":103950,"d":"103,950.00 €"}}]
[null,2,{"$f":"IFERROR(IF(tblMüük[[#This Row],[Toote ID]]<>\"\",VLOOKUP(tblMüük[Toote ID],tblTooted[[Toote ID]:[Nimi]],2,FALSE),\"\"),\"Unknown Product ID\")","v":"Sandaalid"},"2012-02-01",83,{"v":54,"d":"54 €"},753,{"v":1005,"d":"1,005"},{"$f":"tblMüük[[#This Row],[Müüdud ühikud (jae)]]+tblMüük[[#This Row],[Müüdud ühikud (hulgi)]]","v":{"v":1758,"d":"1,758"}},{"$f":"tblMüük[[#This Row],[Müüdud ühikud (jae)]]*tblMüük[[#This Row],[Ühiku jaemüügihind]]+tblMüük[[#This Row],[Müüdud ühikud (hulgi)]]*tblMüük[[#This Row],[Ühiku hulgimüügihind*]]","v":{"v":116769,"d":"116,769.00 €"}}]
[null,3,{"$f":"IFERROR(IF(tblMüük[[#This Row],[Toote ID]]<>\"\",VLOOKUP(tblMüük[Toote ID],tblTooted[[Toote ID]:[Nimi]],2,FALSE),\"\"),\"Unknown Product ID\")","v":"Päikesevarjud"},"2012-02-01",34,{"v":34,"d":"34 €"},986,{"v":1069,"d":"1,069"},{"$f":"tblMüük[[#This Row],[Müüdud ühikud (jae)]]+tblMüük[[#This Row],[Müüdud ühikud (hulgi)]]","v":{"v":2055,"d":"2,055"}},{"$f":"tblMüük[[#This Row],[Müüdud ühikud (jae)]]*tblMüük[[#This Row],[Ühiku jaemüügihind]]+tblMüük[[#This Row],[Müüdud ühikud (hulgi)]]*tblMüük[[#This Row],[Ühiku hulgimüügihind*]]","v":{"v":69870,"d":"69,870.00 €"}}]
[null,4,{"$f":"IFERROR(IF(tblMüük[[#This Row],[Toote ID]]<>\"\",VLOOKUP(tblMüük[Toote ID],tblTooted[[Toote ID]:[Nimi]],2,FALSE),\"\"),\"Unknown Product ID\")","v":"Veepudelid"},"2012-02-01",35,{"v":25,"d":"25 €"},848,{"v":1211,"d":"1,211"},{"$f":"tblMüük[[#This Row],[Müüdud ühikud (jae)]]+tblMüük[[#This Row],[Müüdud ühikud (hulgi)]]","v":{"v":2059,"d":"2,059"}},{"$f":"tblMüük[[#This Row],[Müüdud ühikud (jae)]]*tblMüük[[#This Row],[Ühiku jaemüügihind]]+tblMüük[[#This Row],[Müüdud ühikud (hulgi)]]*tblMüük[[#This Row],[Ühiku hulgimüügihind*]]","v":{"v":59955,"d":"59,955.00 €"}}]
[null,5,{"$f":"IFERROR(IF(tblMüük[[#This Row],[Toote ID]]<>\"\",VLOOKUP(tblMüük[Toote ID],tblTooted[[Toote ID]:[Nimi]],2,FALSE),\"\"),\"Unknown Product ID\")","v":"Lühikesed püksid"},"2012-02-01",41,{"v":38,"d":"38 €"},980,{"v":1330,"d":"1,330"},{"$f":"tblMüük[[#This Row],[Müüdud ühikud (jae)]]+tblMüük[[#This Row],[Müüdud ühikud (hulgi)]]","v":{"v":2310,"d":"2,310"}},{"$f":"tblMüük[[#This Row],[Müüdud ühikud (jae)]]*tblMüük[[#This Row],[Ühiku jaemüügihind]]+tblMüük[[#This Row],[Müüdud ühikud (hulgi)]]*tblMüük[[#This Row],[Ühiku hulgimüügihind*]]","v":{"v":90720,"d":"90,720.00 €"}}]
[null,1,{"$f":"IFERROR(IF(tblMüük[[#This Row],[Toote ID]]<>\"\",VLOOKUP(tblMüük[Toote ID],tblTooted[[Toote ID]:[Nimi]],2,FALSE),\"\"),\"Unknown Product ID\")","v":"Särgid"},"2012-02-29",27,{"v":18,"d":"18 €"},533,{"v":1936,"d":"1,936"},{"$f":"tblMüük[[#This Row],[Müüdud ühikud (jae)]]+tblMüük[[#This Row],[Müüdud ühikud (hulgi)]]","v":{"v":2469,"d":"2,469"}},{"$f":"tblMüük[[#This Row],[Müüdud ühikud (jae)]]*tblMüük[[#This Row],[Ühiku jaemüügihind]]+tblMüük[[#This Row],[Müüdud ühikud (hulgi)]]*tblMüük[[#This Row],[Ühiku hulgimüügihind*]]","v":{"v":49239,"d":"49,239.00 €"}}]
[null,2,{"$f":"IFERROR(IF(tblMüük[[#This Row],[Toote ID]]<>\"\",VLOOKUP(tblMüük[Toote ID],tblTooted[[Toote ID]:[Nimi]],2,FALSE),\"\"),\"Unknown Product ID\")","v":"Sandaalid"},"2012-02-29",38,{"v":28,"d":"28 €"},952,{"v":1512,"d":"1,512"},{"$f":"tblMüük[[#This Row],[Müüdud ühikud (jae)]]+tblMüük[[#This Row],[Müüdud ühikud (hulgi)]]","v":{"v":2464,"d":"2,464"}},{"$f":"tblMüük[[#This Row],[Müüdud ühikud (jae)]]*tblMüük[[#This Row],[Ühiku jaemüügihind]]+tblMüük[[#This Row],[Müüdud ühikud (hulgi)]]*tblMüük[[#This Row],[Ühiku hulgimüügihind*]]","v":{"v":78512,"d":"78,512.00 €"}}]
[null,3,{"$f":"IFERROR(IF(tblMüük[[#This Row],[Toote ID]]<>\"\",VLOOKUP(tblMüük[Toote ID],tblTooted[[Toote ID]:[Nimi]],2,FALSE),\"\"),\"Unknown Product ID\")","v":"Päikesevarjud"},"2012-02-29",92,{"v":92,"d":"92 €"},956,{"v":1266,"d":"1,266"},{"$f":"tblMüük[[#This Row],[Müüdud ühikud (jae)]]+tblMüük[[#This Row],[Müüdud ühikud (hulgi)]]","v":{"v":2222,"d":"2,222"}},{"$f":"tblMüük[[#This Row],[Müüdud ühikud (jae)]]*tblMüük[[#This Row],[Ühiku jaemüügihind]]+tblMüük[[#This Row],[Müüdud ühikud (hulgi)]]*tblMüük[[#This Row],[Ühiku hulgimüügihind*]]","v":{"v":204424,"d":"204,424.00 €"}}]
[null,4,{"$f":"IFERROR(IF(tblMüük[[#This Row],[Toote ID]]<>\"\",VLOOKUP(tblMüük[Toote ID],tblTooted[[Toote ID]:[Nimi]],2,FALSE),\"\"),\"Unknown Product ID\")","v":"Veepudelid"},"2012-02-29",43,{"v":36,"d":"36 €"},952,{"v":1390,"d":"1,390"},{"$f":"tblMüük[[#This Row],[Müüdud ühikud (jae)]]+tblMüük[[#This Row],[Müüdud ühikud (hulgi)]]","v":{"v":2342,"d":"2,342"}},{"$f":"tblMüük[[#This Row],[Müüdud ühikud (jae)]]*tblMüük[[#This Row],[Ühiku jaemüügihind]]+tblMüük[[#This Row],[Müüdud ühikud (hulgi)]]*tblMüük[[#This Row],[Ühiku hulgimüügihind*]]","v":{"v":90976,"d":"90,976.00 €"}}]
[null,5,{"$f":"IFERROR(IF(tblMüük[[#This Row],[Toote ID]]<>\"\",VLOOKUP(tblMüük[Toote ID],tblTooted[[Toote ID]:[Nimi]],2,FALSE),\"\"),\"Unknown Product ID\")","v":"Lühikesed püksid"},"2012-02-29",98,{"v":73,"d":"73 €"},530,{"v":1452,"d":"1,452"},{"$f":"tblMüük[[#This Row],[Müüdud ühikud (jae)]]+tblMüük[[#This Row],[Müüdud ühikud (hulgi)]]","v":{"v":1982,"d":"1,982"}},{"$f":"tblMüük[[#This Row],[Müüdud ühikud (jae)]]*tblMüük[[#This Row],[Ühiku jaemüügihind]]+tblMüük[[#This Row],[Müüdud ühikud (hulgi)]]*tblMüük[[#This Row],[Ühiku hulgimüügihind*]]","v":{"v":157936,"d":"157,936.00 €"}}]
[null,1,{"$f":"IFERROR(IF(tblMüük[[#This Row],[Toote ID]]<>\"\",VLOOKUP(tblMüük[Toote ID],tblTooted[[Toote ID]:[Nimi]],2,FALSE),\"\"),\"Unknown Product ID\")","v":"Särgid"},"2012-03-31",38,{"v":28,"d":"28 €"},973,{"v":1415,"d":"1,415"},{"$f":"tblMüük[[#This Row],[Müüdud ühikud (jae)]]+tblMüük[[#This Row],[Müüdud ühikud (hulgi)]]","v":{"v":2388,"d":"2,388"}},{"$f":"tblMüük[[#This Row],[Müüdud ühikud (jae)]]*tblMüük[[#This Row],[Ühiku jaemüügihind]]+tblMüük[[#This Row],[Müüdud ühikud (hulgi)]]*tblMüük[[#This Row],[Ühiku hulgimüügihind*]]","v":{"v":76594,"d":"76,594.00 €"}}]
[null,2,{"$f":"IFERROR(IF(tblMüük[[#This Row],[Toote ID]]<>\"\",VLOOKUP(tblMüük[Toote ID],tblTooted[[Toote ID]:[Nimi]],2,FALSE),\"\"),\"Unknown Product ID\")","v":"Sandaalid"},"2012-03-31",50,{"v":36,"d":"36 €"},672,{"v":1105,"d":"1,105"},{"$f":"tblMüük[[#This Row],[Müüdud ühikud (jae)]]+tblMüük[[#This Row],[Müüdud ühikud (hulgi)]]","v":{"v":1777,"d":"1,777"}},{"$f":"tblMüük[[#This Row],[Müüdud ühikud (jae)]]*tblMüük[[#This Row],[Ühiku jaemüügihind]]+tblMüük[[#This Row],[Müüdud ühikud (hulgi)]]*tblMüük[[#This Row],[Ühiku hulgimüügihind*]]","v":{"v":73380,"d":"73,380.00 €"}}]
[null,3,{"$f":"IFERROR(IF(tblMüük[[#This Row],[Toote ID]]<>\"\",VLOOKUP(tblMüük[Toote ID],tblTooted[[Toote ID]:[Nimi]],2,FALSE),\"\"),\"Unknown Product ID\")","v":"Päikesevarjud"},"2012-03-31",24,{"v":23,"d":"23 €"},769,{"v":1629,"d":"1,629"},{"$f":"tblMüük[[#This Row],[Müüdud ühikud (jae)]]+tblMüük[[#This Row],[Müüdud ühikud (hulgi)]]","v":{"v":2398,"d":"2,398"}},{"$f":"tblMüük[[#This Row],[Müüdud ühikud (jae)]]*tblMüük[[#This Row],[Ühiku jaemüügihind]]+tblMüük[[#This Row],[Müüdud ühikud (hulgi)]]*tblMüük[[#This Row],[Ühiku hulgimüügihind*]]","v":{"v":55923,"d":"55,923.00 €"}}]
[null,4,{"$f":"IFERROR(IF(tblMüük[[#This Row],[Toote ID]]<>\"\",VLOOKUP(tblMüük[Toote ID],tblTooted[[Toote ID]:[Nimi]],2,FALSE),\"\"),\"Unknown Product ID\")","v":"Veepudelid"},"2012-03-31",72,{"v":57,"d":"57 €"},985,{"v":1848,"d":"1,848"},{"$f":"tblMüük[[#This Row],[Müüdud ühikud (jae)]]+tblMüük[[#This Row],[Müüdud ühikud (hulgi)]]","v":{"v":2833,"d":"2,833"}},{"$f":"tblMüük[[#This Row],[Müüdud ühikud (jae)]]*tblMüük[[#This Row],[Ühiku jaemüügihind]]+tblMüük[[#This Row],[Müüdud ühikud (hulgi)]]*tblMüük[[#This Row],[Ühiku hulgimüügihind*]]","v":{"v":176256,"d":"176,256.00 €"}}]
[null,5,{"$f":"IFERROR(IF(tblMüük[[#This Row],[Toote ID]]<>\"\",VLOOKUP(tblMüük[Toote ID],tblTooted[[Toote ID]:[Nimi]],2,FALSE),\"\"),\"Unknown Product ID\")","v":"Lühikesed püksid"},"2012-03-31",85,{"v":43,"d":"43 €"},721,{"v":1426,"d":"1,426"},{"$f":"tblMüük[[#This Row],[Müüdud ühikud (jae)]]+tblMüük[[#This Row],[Müüdud ühikud (hulgi)]]","v":{"v":2147,"d":"2,147"}},{"$f":"tblMüük[[#This Row],[Müüdud ühikud (jae)]]*tblMüük[[#This Row],[Ühiku jaemüügihind]]+tblMüük[[#This Row],[Müüdud ühikud (hulgi)]]*tblMüük[[#This Row],[Ühiku hulgimüügihind*]]","v":{"v":122603,"d":"122,603.00 €"}}]
[null,1,{"$f":"IFERROR(IF(tblMüük[[#This Row],[Toote ID]]<>\"\",VLOOKUP(tblMüük[Toote ID],tblTooted[[Toote ID]:[Nimi]],2,FALSE),\"\"),\"Unknown Product ID\")","v":"Särgid"},"2012-04-30",91,{"v":65,"d":"65 €"},603,{"v":1226,"d":"1,226"},{"$f":"tblMüük[[#This Row],[Müüdud ühikud (jae)]]+tblMüük[[#This Row],[Müüdud ühikud (hulgi)]]","v":{"v":1829,"d":"1,829"}},{"$f":"tblMüük[[#This Row],[Müüdud ühikud (jae)]]*tblMüük[[#This Row],[Ühiku jaemüügihind]]+tblMüük[[#This Row],[Müüdud ühikud (hulgi)]]*tblMüük[[#This Row],[Ühiku hulgimüügihind*]]","v":{"v":134563,"d":"134,563.00 €"}}]
[null,2,{"$f":"IFERROR(IF(tblMüük[[#This Row],[Toote ID]]<>\"\",VLOOKUP(tblMüük[Toote ID],tblTooted[[Toote ID]:[Nimi]],2,FALSE),\"\"),\"Unknown Product ID\")","v":"Sandaalid"},"2012-04-30",91,{"v":55,"d":"55 €"},892,{"v":1823,"d":"1,823"},{"$f":"tblMüük[[#This Row],[Müüdud ühikud (jae)]]+tblMüük[[#This Row],[Müüdud ühikud (hulgi)]]","v":{"v":2715,"d":"2,715"}},{"$f":"tblMüük[[#This Row],[Müüdud ühikud (jae)]]*tblMüük[[#This Row],[Ühiku jaemüügihind]]+tblMüük[[#This Row],[Müüdud ühikud (hulgi)]]*tblMüük[[#This Row],[Ühiku hulgimüügihind*]]","v":{"v":181437,"d":"181,437.00 €"}}]
[null,3,{"$f":"IFERROR(IF(tblMüük[[#This Row],[Toote ID]]<>\"\",VLOOKUP(tblMüük[Toote ID],tblTooted[[Toote ID]:[Nimi]],2,FALSE),\"\"),\"Unknown Product ID\")","v":"Päikesevarjud"},"2012-04-30",42,{"v":42,"d":"42 €"},611,{"v":1181,"d":"1,181"},{"$f":"tblMüük[[#This Row],[Müüdud ühikud (jae)]]+tblMüük[[#This Row],[Müüdud ühikud (hulgi)]]","v":{"v":1792,"d":"1,792"}},{"$f":"tblMüük[[#This Row],[Müüdud ühikud (jae)]]*tblMüük[[#This Row],[Ühiku jaemüügihind]]+tblMüük[[#This Row],[Müüdud ühikud (hulgi)]]*tblMüük[[#This Row],[Ühiku hulgimüügihind*]]","v":{"v":75264,"d":"75,264.00 €"}}]
[null,4,{"$f":"IFERROR(IF(tblMüük[[#This Row],[Toote ID]]<>\"\",VLOOKUP(tblMüük[Toote ID],tblTooted[[Toote ID]:[Nimi]],2,FALSE),\"\"),\"Unknown Product ID\")","v":"Veepudelid"},"2012-04-30",85,{"v":43,"d":"43 €"},530,{"v":1039,"d":"1,039"},{"$f":"tblMüük[[#This Row],[Müüdud ühikud (jae)]]+tblMüük[[#This Row],[Müüdud ühikud (hulgi)]]","v":{"v":1569,"d":"1,569"}},{"$f":"tblMüük[[#This Row],[Müüdud ühikud (jae)]]*tblMüük[[#This Row],[Ühiku jaemüügihind]]+tblMüük[[#This Row],[Müüdud ühikud (hulgi)]]*tblMüük[[#This Row],[Ühiku hulgimüügihind*]]","v":{"v":89727,"d":"89,727.00 €"}}]
[null,5,{"$f":"IFERROR(IF(tblMüük[[#This Row],[Toote ID]]<>\"\",VLOOKUP(tblMüük[Toote ID],tblTooted[[Toote ID]:[Nimi]],2,FALSE),\"\"),\"Unknown Product ID\")","v":"Lühikesed püksid"},"2012-04-30",82,{"v":71,"d":"71 €"},716,{"v":1249,"d":"1,249"},{"$f":"tblMüük[[#This Row],[Müüdud ühikud (jae)]]+tblMüük[[#This Row],[Müüdud ühikud (hulgi)]]","v":{"v":1965,"d":"1,965"}},{"$f":"tblMüük[[#This Row],[Müüdud ühikud (jae)]]*tblMüük[[#This Row],[Ühiku jaemüügihind]]+tblMüük[[#This Row],[Müüdud ühikud (hulgi)]]*tblMüük[[#This Row],[Ühiku hulgimüügihind*]]","v":{"v":147391,"d":"147,391.00 €"}}]
[null,1,{"$f":"IFERROR(IF(tblMüük[[#This Row],[Toote ID]]<>\"\",VLOOKUP(tblMüük[Toote ID],tblTooted[[Toote ID]:[Nimi]],2,FALSE),\"\"),\"Unknown Product ID\")","v":"Särgid"},"2012-05-14",34,{"v":31,"d":"31 €"},850,{"v":1548,"d":"1,548"},{"$f":"tblMüük[[#This Row],[Müüdud ühikud (jae)]]+tblMüük[[#This Row],[Müüdud ühikud (hulgi)]]","v":{"v":2398,"d":"2,398"}},{"$f":"tblMüük[[#This Row],[Müüdud ühikud (jae)]]*tblMüük[[#This Row],[Ühiku jaemüügihind]]+tblMüük[[#This Row],[Müüdud ühikud (hulgi)]]*tblMüük[[#This Row],[Ühiku hulgimüügihind*]]","v":{"v":76888,"d":"76,888.00 €"}}]
[null,2,{"$f":"IFERROR(IF(tblMüük[[#This Row],[Toote ID]]<>\"\",VLOOKUP(tblMüük[Toote ID],tblTooted[[Toote ID]:[Nimi]],2,FALSE),\"\"),\"Unknown Product ID\")","v":"Sandaalid"},"2012-05-14",64,{"v":40,"d":"40 €"},876,{"v":1663,"d":"1,663"},{"$f":"tblMüük[[#This Row],[Müüdud ühikud (jae)]]+tblMüük[[#This Row],[Müüdud ühikud (hulgi)]]","v":{"v":2539,"d":"2,539"}},{"$f":"tblMüük[[#This Row],[Müüdud ühikud (jae)]]*tblMüük[[#This Row],[Ühiku jaemüügihind]]+tblMüük[[#This Row],[Müüdud ühikud (hulgi)]]*tblMüük[[#This Row],[Ühiku hulgimüügihind*]]","v":{"v":122584,"d":"122,584.00 €"}}]
[null,3,{"$f":"IFERROR(IF(tblMüük[[#This Row],[Toote ID]]<>\"\",VLOOKUP(tblMüük[Toote ID],tblTooted[[Toote ID]:[Nimi]],2,FALSE),\"\"),\"Unknown Product ID\")","v":"Päikesevarjud"},"2012-05-14",33,{"v":30,"d":"30 €"},881,{"v":1149,"d":"1,149"},{"$f":"tblMüük[[#This Row],[Müüdud ühikud (jae)]]+tblMüük[[#This Row],[Müüdud ühikud (hulgi)]]","v":{"v":2030,"d":"2,030"}},{"$f":"tblMüük[[#This Row],[Müüdud ühikud (jae)]]*tblMüük[[#This Row],[Ühiku jaemüügihind]]+tblMüük[[#This Row],[Müüdud ühikud (hulgi)]]*tblMüük[[#This Row],[Ühiku hulgimüügihind*]]","v":{"v":63543,"d":"63,543.00 €"}}]
[null,4,{"$f":"IFERROR(IF(tblMüük[[#This Row],[Toote ID]]<>\"\",VLOOKUP(tblMüük[Toote ID],tblTooted[[Toote ID]:[Nimi]],2,FALSE),\"\"),\"Unknown Product ID\")","v":"Veepudelid"},"2012-05-14",29,{"v":27,"d":"27 €"},802,{"v":1548,"d":"1,548"},{"$f":"tblMüük[[#This Row],[Müüdud ühikud (jae)]]+tblMüük[[#This Row],[Müüdud ühikud (hulgi)]]","v":{"v":2350,"d":"2,350"}},{"$f":"tblMüük[[#This Row],[Müüdud ühikud (jae)]]*tblMüük[[#This Row],[Ühiku jaemüügihind]]+tblMüük[[#This Row],[Müüdud ühikud (hulgi)]]*tblMüük[[#This Row],[Ühiku hulgimüügihind*]]","v":{"v":65054,"d":"65,054.00 €"}}]
[null,5,{"$f":"IFERROR(IF(tblMüük[[#This Row],[Toote ID]]<>\"\",VLOOKUP(tblMüük[Toote ID],tblTooted[[Toote ID]:[Nimi]],2,FALSE),\"\"),\"Unknown Product ID\")","v":"Lühikesed püksid"},"2013-12-11",24,{"v":15,"d":"15 €"},824,{"v":1994,"d":"1,994"},{"$f":"tblMüük[[#This Row],[Müüdud ühikud (jae)]]+tblMüük[[#This Row],[Müüdud ühikud (hulgi)]]","v":{"v":2818,"d":"2,818"}},{"$f":"tblMüük[[#This Row],[Müüdud ühikud (jae)]]*tblMüük[[#This Row],[Ühiku jaemüügihind]]+tblMüük[[#This Row],[Müüdud ühikud (hulgi)]]*tblMüük[[#This Row],[Ühiku hulgimüügihind*]]","v":{"v":49686,"d":"49,686.00 €"}}]

{"sheet":"Hinnakiri","index":2,"n_rows":18,"n_cols":6,"rows_kept":18,"merged":[[15,1,15,5]]}
[null,"Toodete hinnakiri"]
[]
[null,"Adventure Works"]
[null,"Vahtra 1234"]
[null,"12345 Kevadküla, Läänemaa"]
[null,"Telefon: (123) 555 1234"]
[null,"Faks: (123) 555 2345"]
[null,"www.adventure-works.com",{"$nulls":3},"Viimati värskendatud: 15.08.2013"]
[]
[null,"Toote ID","Nimi","Kirjeldus","Ühiku jaemüügihind","Ühiku hulgimüügihind*"]
[null,1,"Särgid","Meie 100% puuvillased särgid ei tõmba pesus kokku ja teevad suve mõnusaks.",{"v":22,"d":"22 €"},{"v":15,"d":"15.00 €"}]
[null,2,"Sandaalid","Meie vastupidavate kummitallaga sandaalidega saate muretult käia ka kuumal liival.",{"v":10,"d":"10 €"},{"v":6,"d":"6.00 €"}]
[null,3,"Päikesevarjud","Päikese eest pakuvad kaitset meie suured rannavarjud, mis blokeerivad koguni 96% kahjulikust UV-kiirgusest.",{"v":30,"d":"30 €"},{"v":20,"d":"20.00 €"}]
[null,4,"Veepudelid","Isoleerkihiga veepudelis püsib värskendav vesi alati täiuslikul temperatuuril.",{"v":7,"d":"7 €"},{"v":5,"d":"5.00 €"}]
[null,5,"Lühikesed püksid","Nailonist lühikesed püksid kuivavad paari hetkega – võite otse merest autosse istuda!",{"v":15,"d":"15 €"},{"v":8,"d":"8.00 €"}]
[]
[{"$nulls":5},"Helistage meile, kui toodet pole hinnakirjas."]
[{"$nulls":5},"*Hulgimüügihind kehtib kogustele, mis on suuremad kui 12 ühikut."]

{"sheet":"Hinnapunkti liigendtabel","index":3,"n_rows":10,"n_cols":4,"rows_kept":10,"hidden":true,"merged":[[1,1,1,3]]}
[null,"Hindade PivotTable-liigendtabel"]
[null,"See leht peaks jääma peidetuks. Allpool PivotTable-liigendtabelisse muudatuste tegemisel võivad andmed toodete müügiaruandes valeks osutuda. "]
[null,"Valitud toode:",{"$f":"IF(LEN(B5),B5,\"Pole\")","v":"Sandaalid"}]
[null,"Toote nimi","Ühiku jaemüügihind","Müük kokku (kogus) "]
[null,"Sandaalid",38,2464]
[null,null,50,1777]
[null,null,64,2539]
[null,null,70,1787]
[null,null,83,1758]
[null,null,91,2715]

{"sheet":"Müügitrendi liigendtabel","index":4,"n_rows":9,"n_cols":3,"rows_kept":9,"hidden":true,"merged":[[1,1,1,3]]}
[null,"Müügitrendi PivotTable-liigendtabel"]
[null,"See leht peaks jääma peidetuks. Allpool PivotTable-liigendtabelisse muudatuste tegemisel võivad andmed toodete müügiaruandes valeks osutuda. "]
[null,"Müük kokku (kogus) ","Toote nimi"]
[null,"Hinna kuupäev","Sandaalid"]
[null,"jaan",1787]
[null,"veebr",4222]
[null,"märts",1777]
[null,"apr",2715]
[null,"mai",2539]